bitfinex/quotes_BTCUSD_20240803
["timestamp","ask_amount","ask_price","bid_price","bid_amount"]
[1722695207013,0.06532,62130.0,62129.0,0.365149]
[1722695207317,0.06532,62130.0,62129.0,0.3820529]
[1722695208446,0.06532,62130.0,62129.0,0.6846859]
[1722695208835,0.06532,62130.0,62129.0,0.4432529]
[1722695211547,0.06532,62130.0,62129.0,0.3820529]
[1722695211905,0.06532,62130.0,62129.0,0.1406199]
[1722695212696,0.06532,62130.0,62129.0,0.1376199]
[1722695213356,0.06632,62130.0,62129.0,0.1376199]
[1722695213704,0.06632,62130.0,62129.0,0.0169039]
[1722695213910,0.06632,62130.0,62129.0,0.1376199]
[1722695214353,0.06532,62130.0,62129.0,0.3790529]
[1722695214572,0.06532,62130.0,62129.0,0.1376199]
[1722695214773,0.06732,62130.0,62129.0,0.1376199]
[1722695216469,0.06532,62130.0,62129.0,0.1376199]
[1722695216829,0.06732,62130.0,62129.0,0.1376199]
[1722695217035,0.06532,62130.0,62129.0,0.7621859]
[1722695217244,0.00083,62130.0,62129.0,0.7621859]
[1722695217449,0.00283,62130.0,62129.0,0.7621859]
[1722695218334,0.00083,62130.0,62129.0,0.7621859]
[1722695219767,0.00083,62130.0,62129.0,0.7631859]
[1722695220215,0.00083,62130.0,62129.0,0.7621859]
[1722695220389,0.00083,62130.0,62129.0,0.7641859]
[1722695220994,0.00083,62130.0,62129.0,0.7691859]
[1722695221671,0.00083,62130.0,62129.0,0.7641859]
[1722695221871,0.00083,62130.0,62129.0,0.7621859]
[1722695222279,0.00083,62130.0,62129.0,0.7661859]
[1722695223315,0.00083,62130.0,62129.0,0.7671859]
[1722695224134,0.00083,62130.0,62129.0,0.7661859]
[1722695224312,0.00083,62130.0,62129.0,0.7621859]
[1722695224516,0.00083,62130.0,62129.0,0.7641859]
[1722695224733,0.00083,62130.0,62129.0,0.7691859]
[1722695227481,0.00083,62130.0,62129.0,0.1446199]
[1722695228130,0.00083,62130.0,62129.0,0.1396199]
[1722695228347,0.00083,62130.0,62129.0,0.3790529]
[1722695228802,0.00283,62130.0,62129.0,0.3790529]
[1722695230471,0.00083,62130.0,62129.0,0.3790529]
[1722695230648,0.00283,62130.0,62129.0,0.3790529]
[1722695231031,0.00083,62130.0,62129.0,0.3790529]
[1722695231245,0.00083,62130.0,62129.0,0.4346529]
[1722695231438,0.00283,62130.0,62129.0,0.4346529]
[1722695231637,0.00283,62130.0,62129.0,0.8254859]
[1722695232045,0.00283,62130.0,62129.0,0.5177529]
[1722695232258,0.00083,62130.0,62129.0,0.5177529]
[1722695232869,0.00083,62130.0,62129.0,0.5187529]
[1722695234138,0.00183,62130.0,62129.0,0.5187529]
[1722695235239,0.00183,62130.0,62129.0,0.4356529]
[1722695235494,0.06513,62130.0,62129.0,0.0179039]
[1722695236347,0.427273,62130.0,62129.0,0.0179039]
[1722695236531,1.72925785,62130.0,62129.0,0.0179039]
[1722695236753,2.25525785,62130.0,62129.0,0.0179039]
[1722695236955,2.4102822,62130.0,62129.0,0.001]
[1722695237158,2.25525785,62130.0,62129.0,0.001]
[1722695237356,0.184036,62119.0,62118.0,0.475]
[1722695237763,0.184036,62119.0,62118.0,0.49194402]
[1722695237967,0.184036,62119.0,62118.0,0.475]
[1722695238197,0.184036,62119.0,62118.0,0.49194402]
[1722695239320,0.184036,62119.0,62118.0,0.49594402]
[1722695239321,0.505308,62119.0,62118.0,0.49594402]
[1722695241172,0.505308,62119.0,62118.0,0.02094402]
[1722695241422,0.263836,62119.0,62118.0,0.02194402]
[1722695241648,0.263836,62119.0,62118.0,0.005]
[1722695241895,0.263836,62119.0,62118.0,0.0219765]
[1722695242104,0.263836,62119.0,62118.0,0.005]
[1722695242562,0.184036,62119.0,62118.0,0.0219765]
[1722695242776,0.425508,62119.0,62118.0,0.005]
[1722695242986,0.425508,62119.0,62118.0,0.0219765]
[1722695243223,0.425508,62119.0,62118.0,0.005]
[1722695243424,0.425508,62119.0,62118.0,0.0219765]
[1722695243634,0.66698,62119.0,62118.0,0.005]
[1722695243960,0.425508,62119.0,62118.0,0.005]
[1722695245990,0.0633,62119.0,62118.0,0.0606]
[1722695246208,0.184036,62119.0,62118.0,0.0606]
[1722695246415,0.184036,62119.0,62118.0,0.07762201]
[1722695248792,0.425508,62119.0,62118.0,0.07762201]
[1722695249036,0.66698,62119.0,62118.0,0.02202201]
[1722695249438,0.66698,62119.0,62118.0,0.005]
[1722695252131,0.74858,62119.0,62118.0,0.005]
[1722695253613,1.57505162,62119.0,62118.0,0.005]
[1722695253819,1.62671422,62119.0,62118.0,0.005]
[1722695254042,1.64671422,62119.0,62118.0,0.005]
[1722695254693,1.64671422,62119.0,62118.0,0.001]
[1722695254903,1.64771422,62119.0,62118.0,0.002]
[1722695255138,1.64771422,62119.0,62118.0,0.001]
[1722695255363,1.65071422,62119.0,62118.0,0.002]
[1722695255791,1.82061422,62119.0,62118.0,0.002]
[1722695256248,3.75620622,62119.0,62118.0,0.002]
[1722695256481,4.03918565,62119.0,62118.0,0.002]
[1722695256687,3.89467194,62119.0,62118.0,0.002]
[1722695256893,3.90071692,62119.0,62118.0,0.002]
[1722695257107,3.71484492,62119.0,62118.0,0.002]
[1722695257349,3.32483422,62119.0,62118.0,0.002]
[1722695257548,3.34483422,62119.0,62118.0,0.002]
[1722695257991,3.08236222,62119.0,62118.0,0.001]
[1722695258185,0.120751,62111.0,62110.0,0.000913]
[1722695258392,0.120751,62111.0,62110.0,0.067213]
[1722695258607,0.362254,62111.0,62110.0,0.01805427]
[1722695259823,0.613757,62111.0,62110.0,0.01905427]
[1722695260058,0.627757,62111.0,62110.0,0.001913]
[1722695261243,0.362254,62111.0,62110.0,0.000913]
[1722695261596,0.371254,62111.0,62110.0,0.001913]
[1722695261786,0.383254,62111.0,62110.0,0.002913]
[1722695262377,0.141751,62111.0,62110.0,0.002913]
[1722695262913,0.383254,62111.0,62110.0,0.002913]
[1722695263258,0.383254,62111.0,62110.0,0.02005427]
[1722695263678,0.141751,62111.0,62110.0,0.02005427]
[1722695263908,0.288251,62111.0,62110.0,0.02005427]
[1722695264523,0.276251,62111.0,62110.0,0.01905427]
[1722695264721,0.276251,62111.0,62110.0,0.02005427]
[1722695264925,0.277251,62111.0,62110.0,0.01905427]
[1722695265095,0.277251,62111.0,62110.0,0.02005427]
[1722695265301,0.285251,62111.0,62110.0,0.02005427]
[1722695265704,0.518754,62111.0,62110.0,0.01905427]
[1722695266320,0.518754,62111.0,62110.0,0.001913]
[1722695266496,0.518754,62111.0,62110.0,0.002913]
[1722695266699,0.525754,62111.0,62110.0,0.02005427]
[1722695266904,0.767257,62111.0,62110.0,0.002913]
[1722695268352,0.525754,62111.0,62110.0,0.002913]
[1722695268558,0.525754,62111.0,62110.0,0.02004148]
[1722695268782,0.525754,62111.0,62110.0,0.002913]
[1722695269729,0.284251,62111.0,62110.0,0.002913]
[1722695269936,0.137751,62111.0,62110.0,0.002913]
[1722695270143,0.017,62111.0,62110.0,0.02004148]
[1722695270342,0.017,62111.0,62110.0,0.002913]
[1722695270489,0.017,62111.0,62110.0,0.02004148]
[1722695271506,0.017,62111.0,62110.0,0.16164148]
[1722695271720,0.137751,62111.0,62110.0,0.16164148]
[1722695271980,0.137751,62111.0,62110.0,0.09634148]
[1722695274703,0.137751,62111.0,62110.0,0.079213]
[1722695274919,0.137751,62111.0,62110.0,0.09634148]
[1722695275133,0.284251,62111.0,62110.0,0.09634148]
[1722695278090,1.095871,62111.0,62110.0,0.09634148]
[1722695278505,1.095871,62111.0,62110.0,0.079213]
[1722695278706,1.160386,62111.0,62110.0,0.079213]
[1722695281786,1.401889,62111.0,62110.0,0.079213]
[1722695281964,1.401889,62111.0,62110.0,0.002913]
[1722695282164,0.443769,62111.0,62110.0,0.002913]
[1722695284084,0.685272,62111.0,62110.0,0.002913]
[1722695284282,0.79096686,62111.0,62110.0,0.02004148]
[1722695284508,0.79096686,62111.0,62110.0,0.002913]
[1722695284830,0.54946386,62111.0,62110.0,0.002913]
[1722695285278,0.54946386,62111.0,62110.0,0.01720128]
[1722695285481,0.54946386,62111.0,62110.0,0.002913]
[1722695286343,0.54926759,62111.0,62110.0,0.002913]
[1722695286961,0.54926759,62111.0,62110.0,0.01720128]
[1722695287634,0.54926759,62111.0,62110.0,0.002913]
[1722695287838,0.54926759,62111.0,62110.0,0.01720128]
[1722695288022,0.54926759,62111.0,62110.0,0.002913]
[1722695289088,0.79077059,62111.0,62110.0,0.002913]
[1722695289297,0.83899553,62111.0,62110.0,0.002913]
[1722695289748,0.79077059,62111.0,62110.0,0.002913]
[1722695290373,0.79099723,62111.0,62110.0,0.002913]
[1722695291285,0.83928649,62111.0,62110.0,0.002913]
[1722695291529,0.54949423,62111.0,62110.0,0.002913]
[1722695291742,0.54949423,62111.0,62110.0,0.142613]
[1722695291949,0.23553046,62111.0,62110.0,0.142613]
[1722695292176,0.18724023,62111.0,62110.0,0.51916128]
[1722695292375,0.017,62111.0,62110.0,1.00217528]
[1722695292581,0.017,62111.0,62110.0,0.76066828]
[1722695293220,0.017,62111.0,62110.0,0.75966828]
[1722695293473,0.017,62111.0,62110.0,0.15590128]
[1722695293474,0.01,62111.0,62110.0,0.15590128]
[1722695293718,0.132751,62111.0,62110.0,0.15590128]
[1722695293971,0.002,62111.0,62110.0,0.15490128]
[1722695294212,0.605757,62111.0,62110.0,0.000913]
[1722695294466,0.605757,62111.0,62110.0,0.004913]
[1722695294713,0.71051753,62111.0,62110.0,0.000913]
[1722695295210,0.71051753,62111.0,62110.0,0.006913]
[1722695295453,0.22801991,62111.0,62110.0,0.006913]
[1722695295654,0.22801991,62111.0,62110.0,0.077513]
[1722695295903,0.364254,62111.0,62110.0,0.077513]
[1722695296105,0.4698076,62111.0,62110.0,0.09192055]
[1722695296542,0.4698077,62111.0,62110.0,0.09192055]
[1722695296750,0.364254,62111.0,62110.0,0.09192055]
[1722695297180,0.46960447,62111.0,62110.0,0.09192055]
[1722695297421,0.22810147,62111.0,62110.0,0.09192055]
[1722695297624,0.10735047,62111.0,62110.0,0.09192055]
[1722695297871,0.10735047,62111.0,62110.0,0.83753949]
[1722695297872,0.002,62111.0,62110.0,0.83753949]
[1722695298715,0.064504,62116.0,62115.0,0.50193]
[1722695298926,0.00083,62119.0,62116.0,0.120741]
[1722695299573,0.00083,62119.0,62117.0,0.01436305]
[1722695299783,0.00083,62119.0,62112.0,0.0766]
[1722695299784,0.120742,62116.0,62112.0,0.0766]
[1722695299989,0.064502,62118.0,62114.0,0.120745]
[1722695301058,0.064502,62118.0,62112.0,0.318097]
[1722695301059,0.064502,62118.0,62115.0,0.120743]
[1722695301252,0.066502,62118.0,62116.0,0.1398]
[1722695301453,0.066502,62118.0,62117.0,0.120739]
[1722695301889,0.066502,62118.0,62116.0,0.1398]
[1722695302093,0.064502,62118.0,62116.0,0.1398]
[1722695302297,0.066502,62118.0,62116.0,0.1398]
[1722695302912,0.066502,62118.0,62116.0,0.260541]
[1722695303119,0.066502,62118.0,62116.0,0.1398]
[1722695303530,0.066502,62118.0,62117.0,0.120739]
[1722695303885,0.066502,62118.0,62116.0,0.1398]
[1722695304095,0.064502,62118.0,62117.0,0.120739]
[1722695304292,0.066502,62118.0,62116.0,0.1398]
[1722695305153,0.064502,62118.0,62116.0,0.1398]
[1722695305359,0.064502,62118.0,62116.0,0.26054]
[1722695305576,0.066502,62118.0,62117.0,0.160986]
[1722695306621,0.066502,62118.0,62116.0,0.300788]
[1722695307051,0.064502,62118.0,62116.0,0.300788]
[1722695307410,0.064502,62118.0,62116.0,0.1398]
[1722695307620,0.066502,62118.0,62117.0,0.300786]
[1722695307823,0.066502,62118.0,62117.0,0.622759]
[1722695308027,0.068502,62118.0,62117.0,0.31571903]
[1722695308808,0.064502,62118.0,62117.0,0.31571903]
[1722695309048,0.064502,62118.0,62117.0,0.15473303]
[1722695309464,0.064502,62118.0,62117.0,0.31671903]
[1722695310270,0.064502,62118.0,62117.0,0.63869203]
[1722695310625,0.064502,62118.0,62117.0,0.31671903]
[1722695310852,0.066502,62118.0,62117.0,0.31671903]
[1722695311454,0.064502,62118.0,62117.0,0.31671903]
[1722695311667,0.065502,62118.0,62117.0,0.31671903]
[1722695312712,0.065502,62118.0,62117.0,0.09323303]
[1722695313283,0.065502,62118.0,62117.0,0.25421903]
[1722695316303,0.127309,62121.0,62117.0,0.25421903]
[1722695316877,0.064503,62120.0,62118.0,0.160983]
[1722695317095,0.127309,62121.0,62118.0,0.160983]
[1722695317299,0.191812,62121.0,62119.0,0.01489837]
[1722695317679,0.191812,62121.0,62117.0,0.238285]
[1722695317881,0.191812,62121.0,62118.0,0.0149036]
[1722695318086,0.198812,62121.0,62118.0,0.0149036]
[1722695318292,0.193812,62121.0,62118.0,0.0149036]
[1722695319040,0.191812,62121.0,62118.0,0.1758866]
[1722695319246,0.198812,62121.0,62118.0,0.1758866]
[1722695319700,0.193812,62121.0,62118.0,0.1758866]
[1722695320760,0.193812,62121.0,62118.0,0.0149036]
[1722695321168,0.197812,62121.0,62118.0,0.0149036]
[1722695321749,0.070503,62121.0,62118.0,0.0149036]
[1722695321952,0.160992,62115.0,62113.0,0.0761]
[1722695322129,0.16099,62116.0,62113.0,0.0761]
[1722695322508,0.160989,62116.0,62114.0,0.00157439]
[1722695323137,0.160987,62117.0,62114.0,0.160994]
[1722695323346,0.160987,62117.0,62115.0,0.00157439]
[1722695323551,0.15745924,62120.0,62113.0,0.1318]
[1722695323757,0.31843824,62120.0,62117.0,0.160985]
[1722695323961,0.31843824,62120.0,62117.0,0.00157439]
[1722695324386,0.31843824,62120.0,62119.0,0.00157439]
[1722695324622,0.160981,62119.0,62118.0,0.01497885]
[1722695324831,0.160984,62118.0,62114.0,0.32356039]
[1722695325032,0.160984,62118.0,62116.0,0.00157439]
[1722695325697,0.321963,62119.0,62116.0,0.00157439]
[1722695325698,0.160986,62117.0,62116.0,0.00157439]
[1722695325880,0.160986,62117.0,62114.0,0.160993]
[1722695326058,0.160986,62117.0,62114.0,0.161993]
[1722695326474,0.15745924,62120.0,62118.0,0.0761]
[1722695326727,0.002,62119.0,62118.0,0.0761]
[1722695328252,0.31843824,62120.0,62118.0,0.0761]
[1722695328731,0.5545,62126.0,62120.0,0.321957]
[1722695328969,0.5545,62126.0,62118.0,0.07875194]
[1722695328970,0.00083,62130.0,62128.0,0.1368]
[1722695329241,0.065323,62130.0,62129.0,0.538565]
[1722695329479,0.00083,62130.0,62129.0,0.538565]
[1722695329717,0.00083,62130.0,62126.0,0.321923]
[1722695329718,0.15828924,62130.0,62122.0,0.0761]
[1722695329914,0.31841424,62129.0,62125.0,0.160965]
[1722695330116,0.160958,62128.0,62124.0,0.160967]
[1722695330325,0.15745924,62128.0,62124.0,0.160967]
[1722695330529,0.15745924,62128.0,62122.0,0.0761]
[1722695330757,0.15745924,62128.0,62123.0,0.32194]
[1722695330758,0.31841724,62128.0,62123.0,0.32194]
[1722695330970,0.31841724,62128.0,62125.0,0.160965]
[1722695331378,0.160961,62127.0,62122.0,0.0761]
[1722695331583,0.32041724,62128.0,62124.0,0.160967]
[1722695331811,0.32041724,62128.0,62125.0,0.160965]
[1722695332262,0.32241724,62128.0,62125.0,0.160965]
[1722695332466,0.32041724,62128.0,62125.0,0.160965]
[1722695332688,0.003,62127.0,62125.0,0.160965]
[1722695333086,0.32041724,62128.0,62125.0,0.160965]
[1722695333523,0.15945924,62128.0,62125.0,0.160965]
[1722695333927,0.15745924,62128.0,62125.0,0.160965]
[1722695334315,0.001,62127.0,62125.0,0.160965]
[1722695334665,0.16145924,62128.0,62125.0,0.160965]
[1722695335111,0.16345924,62128.0,62125.0,0.160965]
[1722695335272,0.16345924,62128.0,62127.0,0.16096]
[1722695335498,0.16345924,62128.0,62127.0,0.558981]
[1722695335902,0.16345924,62128.0,62127.0,0.619681]
[1722695336123,0.15945924,62128.0,62127.0,0.619681]
[1722695336325,0.15945924,62128.0,62127.0,0.29776]
[1722695336891,0.00083,62130.0,62128.0,0.160957]
[1722695337143,0.15828924,62130.0,62128.0,0.160957]
[1722695338277,0.16228924,62130.0,62128.0,0.160956]
[1722695338515,0.00483,62130.0,62129.0,0.804775]
[1722695338715,0.00683,62130.0,62129.0,0.804775]
[1722695338918,0.00683,62130.0,62129.0,0.81965018]
[1722695339978,0.00483,62130.0,62129.0,0.89575018]
[1722695340383,0.00683,62130.0,62129.0,0.89575018]
[1722695340817,0.00283,62130.0,62129.0,0.89575018]
[1722695341058,0.00083,62130.0,62129.0,0.89775018]
[1722695341255,0.00083,62130.0,62129.0,0.90375018]
[1722695341474,0.00083,62130.0,62129.0,0.90175018]
[1722695341674,0.00083,62130.0,62129.0,0.90575018]
[1722695342649,0.00083,62130.0,62129.0,0.58384018]
[1722695343025,0.00083,62130.0,62129.0,0.90575018]
[1722695343648,0.00083,62130.0,62129.0,0.58384018]
[1722695345067,0.00083,62130.0,62129.0,0.90575018]
[1722695346701,0.00083,62130.0,62129.0,0.58384018]
[1722695347058,0.00083,62130.0,62129.0,0.90575018]
[1722695347332,0.00083,62130.0,62129.0,0.58384018]
[1722695347678,0.00083,62130.0,62129.0,0.10097518]
[1722695347879,0.00083,62130.0,62129.0,0.26193018]
[1722695348721,0.00083,62130.0,62129.0,0.58384018]
[1722695348922,0.00083,62130.0,62129.0,0.57984018]
[1722695349120,0.00083,62130.0,62129.0,0.58084018]
[1722695349331,0.00083,62130.0,62129.0,0.57484018]
[1722695350015,0.00083,62130.0,62129.0,0.57684018]
[1722695350861,0.00083,62130.0,62129.0,0.25493018]
[1722695351279,0.00083,62130.0,62129.0,0.09397518]
[1722695352053,0.00083,62130.0,62129.0,0.25493018]
[1722695352521,0.221266,62133.0,62129.0,0.25493018]
[1722695352935,0.221266,62133.0,62130.0,0.00157439]
[1722695353156,0.06032,62133.0,62130.0,0.00157439]
[1722695353336,0.06032,62133.0,62131.0,0.01484234]
[1722695353972,0.06132,62133.0,62132.0,0.00157439]
[1722695354182,0.222265,62133.0,62132.0,0.00157439]
[1722695354396,0.06032,62133.0,62132.0,0.0164115]
[1722695354637,0.20682,62133.0,62132.0,0.01483711]
[1722695354851,0.20982,62133.0,62132.0,0.01483711]
[1722695355294,0.21282,62133.0,62130.0,0.160952]
[1722695355540,0.21282,62133.0,62132.0,0.01483711]
[1722695355786,0.21282,62133.0,62131.0,0.17579234]
[1722695356036,0.21282,62133.0,62132.0,0.01483711]
[1722695356297,0.21382,62133.0,62132.0,0.01483711]
[1722695356529,0.374765,62133.0,62132.0,0.01483711]
[1722695356982,0.21382,62133.0,62130.0,0.160951]
[1722695357197,0.21382,62133.0,62132.0,0.01483711]
[1722695357396,0.21282,62133.0,62130.0,0.160951]
[1722695357620,0.21382,62133.0,62132.0,0.01483711]
[1722695357828,0.21382,62133.0,62130.0,0.160951]
[1722695358042,0.21382,62133.0,62129.0,0.1317]
[1722695358043,0.374765,62133.0,62132.0,0.01483711]
[1722695358251,0.374765,62133.0,62131.0,0.00157439]
[1722695358252,0.374765,62133.0,62131.0,0.01484234]
[1722695358467,0.374765,62133.0,62132.0,0.01483898]
[1722695358687,0.368765,62133.0,62132.0,0.01483898]
[1722695358908,0.368765,62133.0,62130.0,0.160952]
[1722695359111,0.21082,62133.0,62132.0,0.01483898]
[1722695359312,0.21165,62133.0,62131.0,0.01484421]
[1722695359517,0.21165,62133.0,62130.0,0.160952]
[1722695359518,0.21065,62133.0,62132.0,0.01483898]
[1722695359942,0.21165,62133.0,62130.0,0.160952]
[1722695360141,0.21165,62133.0,62132.0,0.01483898]
[1722695360344,0.21065,62133.0,62131.0,0.01484421]
[1722695360543,0.21065,62133.0,62132.0,0.01483898]
[1722695360748,0.21165,62133.0,62132.0,0.01483898]
[1722695360950,0.20865,62133.0,62129.0,0.46479926]
[1722695361175,0.15033,62133.0,62132.0,0.36838598]
[1722695361378,0.00383,62133.0,62132.0,0.36838598]
[1722695361580,0.00083,62133.0,62132.0,0.36838598]
[1722695362003,0.00383,62133.0,62132.0,0.36838598]
[1722695362410,0.00383,62133.0,62132.0,1.01217598]
[1722695362611,0.001,62133.0,62132.0,1.81342522]
[1722695362817,0.0036355,62141.0,62140.0,1.263485]
[1722695363035,0.0036355,62141.0,62140.0,1.319085]
[1722695363242,0.0036355,62141.0,62140.0,1.33387332]
[1722695363445,0.0036355,62141.0,62140.0,1.43094036]
[1722695363668,0.0036355,62141.0,62140.0,1.33387332]
[1722695364070,0.0036355,62141.0,62140.0,1.75278571]
[1722695364278,0.0036355,62141.0,62140.0,1.65572632]
[1722695364485,0.0046355,62141.0,62140.0,1.66872632]
[1722695365318,0.0046355,62141.0,62140.0,1.29127332]
[1722695365937,0.0046355,62141.0,62140.0,1.28527332]
[1722695366356,0.0046355,62141.0,62140.0,0.96342032]
[1722695366561,0.0046355,62141.0,62140.0,1.28527332]
[1722695366771,0.0036355,62141.0,62140.0,1.27827332]
[1722695366978,0.0046355,62141.0,62140.0,1.29227332]
[1722695367378,0.0056355,62141.0,62140.0,1.29227332]
[1722695367578,0.0036355,62141.0,62140.0,1.27827332]
[1722695367999,0.0046355,62141.0,62140.0,1.29027332]
[1722695368420,0.0056355,62141.0,62140.0,1.30327332]
[1722695370234,0.0056355,62141.0,62140.0,0.98142032]
[1722695372059,0.0056355,62141.0,62140.0,1.30327332]
[1722695372463,0.0056355,62141.0,62140.0,1.31415854]
[1722695381581,0.0056355,62141.0,62140.0,1.63601154]
[1722695387384,0.0056355,62141.0,62140.0,1.57421154]
[1722695392412,0.0056355,62141.0,62140.0,1.6702312]
[1722695393202,0.0056355,62141.0,62140.0,1.7258312]
[1722695393552,0.0056355,62141.0,62140.0,0.9513252]
[1722695393783,0.0056355,62141.0,62140.0,0.85530554]
[1722695393991,0.0833355,62141.0,62140.0,0.85530554]
[1722695394421,0.0056355,62141.0,62140.0,0.85530554]
[1722695394669,0.0056355,62141.0,62140.0,0.93030554]
[1722695395925,0.0056355,62141.0,62140.0,0.85530554]
[1722695397919,0.0056355,62141.0,62140.0,1.17715854]
[1722695399040,0.0056355,62141.0,62140.0,1.31435854]
[1722695399521,0.0056355,62141.0,62140.0,1.41016679]
[1722695400053,0.00559228,62141.0,62140.0,1.41016679]
[1722695402661,0.00907,62148.0,62147.0,0.804542]
[1722695402914,0.00907,62148.0,62147.0,1.271359]
[1722695404278,0.15557,62148.0,62147.0,1.207259]
[1722695404487,0.00907,62148.0,62147.0,1.126359]
[1722695404620,0.00907,62148.0,62147.0,1.129359]
[1722695404815,0.00907,62148.0,62147.0,1.134359]
[1722695407050,0.00907,62148.0,62147.0,1.279359]
[1722695407696,0.00907,62148.0,62147.0,1.601176]
[1722695408133,0.00907,62148.0,62147.0,1.279359]
[1722695409835,0.15557,62148.0,62147.0,1.279359]
[1722695411051,0.15557,62148.0,62147.0,1.29044658]
[1722695411506,0.15557,62148.0,62147.0,1.70880346]
[1722695411759,0.00907,62148.0,62147.0,1.70880346]
[1722695412446,0.00907,62148.0,62147.0,1.70080346]
[1722695412670,0.01007,62148.0,62147.0,1.71480346]
[1722695412900,0.01107,62148.0,62147.0,1.72880346]
[1722695413119,0.00907,62154.0,62153.0,1.522137]
[1722695413297,0.47251164,62169.0,62163.0,0.160867]
[1722695413517,0.47251164,62169.0,62163.0,1.126069]
[1722695413741,0.07287,62170.0,62163.0,1.126069]
[1722695414716,0.07287,62170.0,62163.0,1.206969]
[1722695415213,0.07287,62170.0,62163.0,1.272069]
[1722695415444,0.07287,62170.0,62163.0,1.28734911]
[1722695415677,0.00907,62170.0,62163.0,1.60908311]
[1722695415926,0.00907,62170.0,62163.0,1.60808311]
[1722695416176,0.00907,62170.0,62163.0,1.62208311]
[1722695416595,0.00907,62170.0,62163.0,1.60808311]
[1722695417316,0.00907,62170.0,62163.0,1.61908311]
[1722695417548,0.00907,62170.0,62163.0,1.75808311]
[1722695417786,0.00907,62170.0,62163.0,1.90454235]
[1722695418051,0.00907,62170.0,62163.0,1.91854235]
[1722695418293,0.00907,62170.0,62163.0,1.93254235]
[1722695421313,0.00907,62170.0,62163.0,1.94326276]
[1722695426740,0.00907,62170.0,62163.0,1.9424593]
[1722695427912,0.00907,62170.0,62163.0,1.9524593]
[1722695428608,0.00866661,62164.0,62163.0,1.9524593]
[1722695428829,0.00866661,62164.0,62163.0,1.9384593]
[1722695429053,0.00866661,62164.0,62163.0,1.9244593]
[1722695429274,0.00866661,62164.0,62163.0,1.9524593]
[1722695429492,0.00866661,62164.0,62163.0,1.9424593]
[1722695430698,0.00228342,62164.0,62163.0,1.9424593]
[1722695431168,0.00228342,62164.0,62163.0,1.9444593]
[1722695431386,0.00907,62170.0,62169.0,1.41416]
[1722695431931,0.00907,62170.0,62169.0,1.42936001]
[1722695432177,0.00907,62170.0,62169.0,1.75106301]
[1722695432387,0.00907,62170.0,62169.0,1.42936001]
[1722695432554,0.00907,62170.0,62169.0,1.37706001]
[1722695433044,0.00907,62170.0,62169.0,1.92252225]
[1722695433279,0.00907,62170.0,62169.0,1.83902225]
[1722695433425,0.00907,62170.0,62169.0,1.85202225]
[1722695434565,0.00907,62170.0,62169.0,1.83802225]
[1722695435564,0.00907,62170.0,62169.0,1.83902225]
[1722695435766,0.00907,62170.0,62169.0,1.79752225]
[1722695436218,0.00907,62170.0,62169.0,1.83902225]
[1722695436625,0.00907,62170.0,62169.0,1.85302225]
[1722695437419,0.00907,62170.0,62169.0,1.78672225]
[1722695437645,0.00907,62170.0,62169.0,1.85302225]
[1722695440291,0.00907,62170.0,62169.0,1.95035772]
[1722695440492,0.00907,62170.0,62169.0,1.85302225]
[1722695440645,0.00907,62170.0,62169.0,1.95035784]
[1722695441406,0.00907,62170.0,62169.0,1.85302225]
[1722695441514,0.00907,62170.0,62169.0,1.94957108]
[1722695444107,0.00907,62170.0,62169.0,2.01640692]
[1722695444314,0.00907,62170.0,62169.0,2.10240652]
[1722695444487,0.00907,62170.0,62169.0,2.11640652]
[1722695444703,0.00907,62170.0,62169.0,1.57866808]
[1722695444917,0.00907,62170.0,62169.0,1.57909819]
[1722695445124,0.00907,62170.0,62169.0,1.55109819]
[1722695445344,0.00907,62170.0,62169.0,1.45411925]
[1722695445563,0.00907,62170.0,62169.0,1.57909614]
[1722695445895,0.00907,62170.0,62169.0,1.55109614]
[1722695446102,0.00907,62170.0,62169.0,1.56509614]
[1722695446360,0.00907,62170.0,62169.0,2.03109914]
[1722695446560,0.00907,62193.0,62169.0,2.03109914]
[1722695446561,0.082,62192.0,62180.0,0.305123]
[1722695446706,0.082,62192.0,62180.0,1.03670513]
[1722695446707,0.1465,62181.0,62180.0,1.03670513]
[1722695446906,0.1465,62181.0,62180.0,1.69512328]
[1722695447407,0.1465,62181.0,62180.0,1.59814639]
[1722695447624,0.1465,62181.0,62180.0,1.69551477]
[1722695448514,0.1465,62181.0,62180.0,1.70951477]
[1722695449098,0.1465,62181.0,62180.0,1.72251477]
[1722695449286,0.1465,62181.0,62180.0,1.80581477]
[1722695449507,0.1465,62181.0,62180.0,2.12746077]
[1722695451070,0.1465,62181.0,62180.0,2.15946077]
[1722695451287,0.00907,62193.0,62192.0,1.125544]
[1722695451786,0.00907,62193.0,62192.0,1.14055542]
[1722695452817,0.00907,62193.0,62192.0,1.14155542]
[1722695453043,0.00907,62193.0,62192.0,1.14055542]
[1722695453422,0.00907,62193.0,62192.0,1.14955542]
[1722695454078,0.00907,62193.0,62192.0,1.15855542]
[1722695454530,0.00907,62193.0,62192.0,1.14955542]
[1722695454701,0.00907,62193.0,62192.0,1.14055542]
[1722695454901,0.00907,62193.0,62192.0,1.15255542]
[1722695455107,0.00907,62193.0,62192.0,1.16355542]
[1722695455799,0.00907,62193.0,62192.0,0.84197142]
[1722695455997,0.15137,62193.0,62192.0,0.84197142]
[1722695456774,0.15100508,62193.0,62192.0,0.84197142]
[1722695457731,0.15100508,62193.0,62192.0,0.85291246]
[1722695457909,0.15100508,62193.0,62192.0,0.53132846]
[1722695460625,0.15100508,62193.0,62192.0,0.85291246]
[1722695461127,0.15100508,62193.0,62192.0,0.8288877]
[1722695461128,0.00870508,62193.0,62192.0,0.8288877]
[1722695461350,0.00870508,62193.0,62192.0,1.7936397]
[1722695461533,0.00569,62197.0,62196.0,0.94271]
[1722695461725,0.00569,62197.0,62196.0,1.98339724]
[1722695461998,0.00569,62197.0,62196.0,1.99908477]
[1722695462942,0.0141077,62203.0,62198.0,1.125435]
[1722695462943,0.1465,62199.0,62198.0,1.125435]
[1722695463173,0.0141077,62203.0,62202.0,1.018532]
[1722695463408,0.0141077,62203.0,62202.0,1.59752424]
[1722695463634,0.0141077,62203.0,62202.0,1.61313805]